[Event "Titled Tuesday Blitz July 4 Late 2023"]
[White "Taboas Rodriguez, Daniel"]
[Black "Oro, Faustino"]
[WhiteFideId "2208466"]
[BlackFideId "20000197"]
[WhiteElo "2498"]
[BlackElo "2805"]
[Result "0-1"]
[Round "9"]
[TimeControl "180+2"]
[Date "2023.07.04"]
[WhiteClock "0:00:00"]
[BlackClock "0:00:02"]
[Board "29"]

1. d4 {[%clk 0:02:59]}  Nf6 {[%clk 0:02:59]} 2. Nf3 {[%clk 0:03:00]}  e6 {[%clk 0:02:59]} 3. c4 {[%clk 0:03:00]}  d5 {[%clk 0:02:58]} 4. Nc3 {[%clk 0:03:00]}  Bb4 {[%clk 0:02:56]} 5. e3 {[%clk 0:02:57]}  O-O {[%clk 0:02:47]} 6. Bd3 {[%clk 0:02:56]}  b6 {[%clk 0:02:42]} 7. O-O {[%clk 0:02:56]}  Bb7 {[%clk 0:02:41]} 8. Bd2 {[%clk 0:02:55]}  Re8 {[%clk 0:02:40]} 9. Rc1 {[%clk 0:02:49]}  Bf8 {[%clk 0:02:38]} 10. a3 {[%clk 0:02:34]}  c5 {[%clk 0:02:37]} 11. dxc5 {[%clk 0:02:19]}  bxc5 {[%clk 0:02:38]} 12. Qb3 {[%clk 0:02:18]}  Qc8 {[%clk 0:02:23]} 13. Rfd1 {[%clk 0:02:12]}  Nbd7 {[%clk 0:02:20]} 14. cxd5 {[%clk 0:02:07]}  exd5 {[%clk 0:02:19]} 15. Bf5 {[%clk 0:02:07]}  Bc6 {[%clk 0:01:55]} 16. Qc2 {[%clk 0:01:47]}  Bd6 {[%clk 0:01:52]} 17. Ne2 {[%clk 0:01:46]}  Qb7 {[%clk 0:01:41]} 18. b4 {[%clk 0:01:42]}  Ne4 {[%clk 0:01:18]} 19. bxc5 {[%clk 0:01:35]}  Ndxc5 {[%clk 0:01:18]} 20. Ned4 {[%clk 0:01:34]}  Ba4 {[%clk 0:01:17]} 21. Qa2 {[%clk 0:01:23]}  Bxd1 {[%clk 0:01:13]} 22. Rxd1 {[%clk 0:01:24]}  Red8 {[%clk 0:01:08]} 23. Rb1 {[%clk 0:01:23]}  Qc7 {[%clk 0:01:07]} 24. Rc1 {[%clk 0:01:19]}  Qb6 {[%clk 0:00:48]} 25. Bb4 {[%clk 0:01:17]}  a5 {[%clk 0:00:45]} 26. Bxc5 {[%clk 0:01:17]}  Nxc5 {[%clk 0:00:45]} 27. Rb1 {[%clk 0:01:06]}  Qa6 {[%clk 0:00:45]} 28. Nb5 {[%clk 0:01:02]}  Rab8 {[%clk 0:00:43]} 29. Nfd4 {[%clk 0:01:01]}  Be5 {[%clk 0:00:42]} 30. Rc1 {[%clk 0:00:58]}  Bxd4 {[%clk 0:00:40]} 31. Nxd4 {[%clk 0:00:59]}  Qb6 {[%clk 0:00:33]} 32. Qc2 {[%clk 0:00:58]}  Nb3 {[%clk 0:00:28]} 33. Bxh7+ {[%clk 0:00:55]}  Kh8 {[%clk 0:00:28]} 34. Nxb3 {[%clk 0:00:51]}  Qxb3 {[%clk 0:00:28]} 35. Qf5 {[%clk 0:00:50]}  Rb6 {[%clk 0:00:10]} 36. Qg5 {[%clk 0:00:29]}  Re8 {[%clk 0:00:06]} 37. Bf5 {[%clk 0:00:22]}  Kg8 {[%clk 0:00:04]} 38. Bd7 {[%clk 0:00:19]}  Rf8 {[%clk 0:00:04]} 39. h4 {[%clk 0:00:19]}  Qxa3 {[%clk 0:00:04]} 40. Rd1 {[%clk 0:00:15]}  Qd6 {[%clk 0:00:04]} 41. Bf5 {[%clk 0:00:14]}  g6 {[%clk 0:00:03]} 42. Bd3 {[%clk 0:00:12]}  Qf6 {[%clk 0:00:03]} 43. Qg4 {[%clk 0:00:11]}  Rb4 {[%clk 0:00:02]} 44. f4 {[%clk 0:00:09]}  Qc3 {[%clk 0:00:01]} 45. h5 {[%clk 0:00:08]}  Qc5 {[%clk 0:00:02]} 46. hxg6 {[%clk 0:00:08]}  Qxe3+ {[%clk 0:00:02]} 47. Kh2 {[%clk 0:00:07]}  Qxf4+ {[%clk 0:00:03]} 48. Qxf4 {[%clk 0:00:07]}  Rxf4 {[%clk 0:00:04]} 49. Ra1 {[%clk 0:00:04]}  a4 {[%clk 0:00:03]} 50. Bb5 {[%clk 0:00:03]}  fxg6 {[%clk 0:00:03]} 51. Bxa4 {[%clk 0:00:00]}  Ra8 {[%clk 0:00:02]} 0-1


[Site "https://www.chess.com"]

[Event "Titled Tuesday Blitz July 4 Late 2023"]
[White "Vovk, Orest"]
[Black "Hambleton, Aman"]
[WhiteFideId "14113490"]
[BlackFideId "2606577"]
[WhiteElo "2592"]
[BlackElo "2786"]
[Result "0-1"]
[Round "9"]
[TimeControl "180+2"]
[Date "2023.07.04"]
[WhiteClock "0:00:00"]
[BlackClock "0:00:04"]
[Board "30"]

1. g4 {[%clk 0:02:55]}  c6 {[%clk 0:02:53]} 2. Bg2 {[%clk 0:02:55]}  d5 {[%clk 0:02:48]} 3. h3 {[%clk 0:02:55]}  e5 {[%clk 0:02:46]} 4. d4 {[%clk 0:02:55]}  e4 {[%clk 0:02:43]} 5. c4 {[%clk 0:02:53]}  f5 {[%clk 0:02:23]} 6. Nc3 {[%clk 0:02:53]}  Na6 {[%clk 0:01:13]} 7. cxd5 {[%clk 0:02:43]}  cxd5 {[%clk 0:01:13]} 8. Qb3 {[%clk 0:02:37]}  Nc7 {[%clk 0:01:11]} 9. Bf4 {[%clk 0:02:30]}  Bd6 {[%clk 0:01:10]} 10. Bxd6 {[%clk 0:02:18]}  Qxd6 {[%clk 0:01:11]} 11. e3 {[%clk 0:02:10]}  fxg4 {[%clk 0:00:45]} 12. hxg4 {[%clk 0:02:08]}  Bxg4 {[%clk 0:00:45]} 13. Bh3 {[%clk 0:02:01]}  Nf6 {[%clk 0:00:37]} 14. Nge2 {[%clk 0:01:27]}  O-O-O {[%clk 0:00:31]} 15. Rc1 {[%clk 0:01:19]}  Kb8 {[%clk 0:00:31]} 16. Na4 {[%clk 0:01:09]}  Rhf8 {[%clk 0:00:08]} 17. Nc5 {[%clk 0:01:01]}  b6 {[%clk 0:00:08]} 18. Bf1 {[%clk 0:00:43]}  Bf3 {[%clk 0:00:03]} 19. Rg1 {[%clk 0:00:41]}  Ka8 {[%clk 0:00:03]} 20. Na4 {[%clk 0:00:31]}  Ng4 {[%clk 0:00:02]} 21. Qc3 {[%clk 0:00:16]}  Rc8 {[%clk 0:00:02]} 22. Qc6+ {[%clk 0:00:13]}  Qxc6 {[%clk 0:00:02]} 23. Rxc6 {[%clk 0:00:14]}  Kb7 {[%clk 0:00:03]} 24. Rd6 {[%clk 0:00:12]}  Nb5 {[%clk 0:00:03]} 25. Rxd5 {[%clk 0:00:09]}  Nc7 {[%clk 0:00:03]} 26. Rd6 {[%clk 0:00:08]}  h5 {[%clk 0:00:02]} 27. Nac3 {[%clk 0:00:07]}  g6 {[%clk 0:00:01]} 28. Nf4 {[%clk 0:00:06]}  b5 {[%clk 0:00:02]} 29. Kd2 {[%clk 0:00:04]}  b4 {[%clk 0:00:02]} 30. Ncd5 {[%clk 0:00:04]}  Nxd5 {[%clk 0:00:02]} 31. Nxd5 {[%clk 0:00:05]}  Nxf2 {[%clk 0:00:02]} 32. Rgxg6 {[%clk 0:00:04]}  Nd3 {[%clk 0:00:02]} 33. Rg7+ {[%clk 0:00:04]}  Kb8 {[%clk 0:00:02]} 34. Bxd3 {[%clk 0:00:05]}  exd3 {[%clk 0:00:03]} 35. Kxd3 {[%clk 0:00:05]}  Bd1 {[%clk 0:00:02]} 36. Kd2 {[%clk 0:00:04]}  Rc2+ {[%clk 0:00:02]} 37. Kxd1 {[%clk 0:00:03]}  Rxb2 {[%clk 0:00:02]} 38. Rg1 {[%clk 0:00:02]}  Rxa2 {[%clk 0:00:02]} 39. Kc1 {[%clk 0:00:01]}  Ra1+ {[%clk 0:00:02]} 40. Kb2 {[%clk 0:00:02]}  Rxg1 {[%clk 0:00:03]} 41. Nxb4 {[%clk 0:00:02]}  Kb7 {[%clk 0:00:03]} 42. Kb3 {[%clk 0:00:03]}  Rg7 {[%clk 0:00:03]} 43. Re6 {[%clk 0:00:03]}  Rh8 {[%clk 0:00:03]} 44. Nd3 {[%clk 0:00:02]}  h4 {[%clk 0:00:03]} 45. Nc5+ {[%clk 0:00:00]}  Ka8 {[%clk 0:00:04]} 0-1


[Site "https://www.chess.com"]

[Event "Titled Tuesday Blitz July 4 Late 2023"]
[White "Ghazarian, Kirk"]
[Black "Sousa, Andre Ventura"]
[WhiteFideId "30908604"]
[BlackFideId "1917617"]
[WhiteElo "2746"]
[BlackElo "2582"]
[Result "0-1"]
[Round "9"]
[TimeControl "180+2"]
[Date "2023.07.04"]
[WhiteClock "0:00:05"]
[BlackClock "0:00:19"]
[Board "32"]

1. b3 {[%clk 0:02:37]}  g6 {[%clk 0:02:59]} 2. Bb2 {[%clk 0:02:38]}  Nf6 {[%clk 0:02:59]} 3. g3 {[%clk 0:02:37]}  Bg7 {[%clk 0:02:59]} 4. Bg2 {[%clk 0:02:38]}  O-O {[%clk 0:02:59]} 5. d4 {[%clk 0:02:39]}  d5 {[%clk 0:02:58]} 6. Nf3 {[%clk 0:02:39]}  c6 {[%clk 0:02:57]} 7. O-O {[%clk 0:02:40]}  Ne4 {[%clk 0:02:57]} 8. Nbd2 {[%clk 0:02:39]}  Bf5 {[%clk 0:02:54]} 9. Nh4 {[%clk 0:02:32]}  Nxd2 {[%clk 0:02:53]} 10. Qxd2 {[%clk 0:02:33]}  Be6 {[%clk 0:02:44]} 11. Nf3 {[%clk 0:02:29]}  Nd7 {[%clk 0:02:41]} 12. a4 {[%clk 0:02:25]}  a5 {[%clk 0:02:35]} 13. Rfe1 {[%clk 0:02:25]}  Bf5 {[%clk 0:02:32]} 14. Nh4 {[%clk 0:02:25]}  Be6 {[%clk 0:02:28]} 15. e4 {[%clk 0:02:17]}  dxe4 {[%clk 0:02:28]} 16. Bxe4 {[%clk 0:02:17]}  Bd5 {[%clk 0:02:27]} 17. Bxd5 {[%clk 0:02:05]}  cxd5 {[%clk 0:02:27]} 18. Ba3 {[%clk 0:02:06]}  Re8 {[%clk 0:02:26]} 19. Nf3 {[%clk 0:01:58]}  Rc8 {[%clk 0:02:23]} 20. Rac1 {[%clk 0:01:56]}  Nf6 {[%clk 0:02:12]} 21. c4 {[%clk 0:01:53]}  Ne4 {[%clk 0:02:09]} 22. Qd3 {[%clk 0:01:52]}  e6 {[%clk 0:02:05]} 23. Ne5 {[%clk 0:01:42]}  Bxe5 {[%clk 0:01:28]} 24. dxe5 {[%clk 0:01:43]}  Nc5 {[%clk 0:01:28]} 25. Qf3 {[%clk 0:01:32]}  dxc4 {[%clk 0:01:14]} 26. Rxc4 {[%clk 0:01:28]}  Nd3 {[%clk 0:01:09]} 27. Rd1 {[%clk 0:01:00]}  Rxc4 {[%clk 0:00:55]} 28. bxc4 {[%clk 0:00:51]}  Nxe5 {[%clk 0:00:55]} 29. Qe2 {[%clk 0:00:50]}  Qf6 {[%clk 0:00:53]} 30. Bb2 {[%clk 0:00:49]}  Qf3 {[%clk 0:00:49]} 31. Qxe5 {[%clk 0:00:39]}  Qxd1+ {[%clk 0:00:49]} 32. Kg2 {[%clk 0:00:40]}  Kf8 {[%clk 0:00:43]} 33. Qg7+ {[%clk 0:00:20]}  Ke7 {[%clk 0:00:43]} 34. Bf6+ {[%clk 0:00:18]}  Kd6 {[%clk 0:00:40]} 35. Qxf7 {[%clk 0:00:19]}  Qxa4 {[%clk 0:00:36]} 36. Bg5 {[%clk 0:00:14]}  Qc6+ {[%clk 0:00:33]} 37. Kh3 {[%clk 0:00:15]}  Qd7 {[%clk 0:00:30]} 38. Qf3 {[%clk 0:00:12]}  e5+ {[%clk 0:00:29]} 39. Kh4 {[%clk 0:00:11]}  h5 {[%clk 0:00:20]} 40. Qd5+ {[%clk 0:00:06]}  Kc7 {[%clk 0:00:20]} 41. Qxa5+ {[%clk 0:00:07]}  Kb8 {[%clk 0:00:21]} 42. h3 {[%clk 0:00:05]}  Qd4+ {[%clk 0:00:20]} 43. g4 {[%clk 0:00:05]}  Qxf2# {[%clk 0:00:19]} 0-1


[Site "https://www.chess.com"]

[Event "Titled Tuesday Blitz July 4 Late 2023"]
[White "Fernandez Guillen, Ernesto J."]
[Black "Bruedigam, Martin"]
[WhiteFideId "3512428"]
[BlackFideId "24608033"]
[WhiteElo "2744"]
[BlackElo "2561"]
[Result "1-0"]
[Round "9"]
[TimeControl "180+2"]
[Date "2023.07.04"]
[WhiteClock "0:00:16"]
[BlackClock "0:00:00"]
[Board "34"]

1. e4 {[%clk 0:02:47]}  e5 {[%clk 0:02:59]} 2. Nf3 {[%clk 0:02:46]}  Nc6 {[%clk 0:03:00]} 3. d4 {[%clk 0:02:44]}  exd4 {[%clk 0:03:00]} 4. Bc4 {[%clk 0:02:44]}  Bc5 {[%clk 0:02:59]} 5. O-O {[%clk 0:02:45]}  d6 {[%clk 0:02:59]} 6. c3 {[%clk 0:02:45]}  d3 {[%clk 0:02:58]} 7. Bxd3 {[%clk 0:02:43]}  Nf6 {[%clk 0:02:57]} 8. h3 {[%clk 0:02:44]}  h6 {[%clk 0:02:56]} 9. Re1 {[%clk 0:02:44]}  O-O {[%clk 0:02:56]} 10. Bf4 {[%clk 0:02:43]}  Re8 {[%clk 0:02:53]} 11. Nbd2 {[%clk 0:02:42]}  Ne5 {[%clk 0:02:50]} 12. Bc2 {[%clk 0:02:42]}  a6 {[%clk 0:02:45]} 13. Nb3 {[%clk 0:02:35]}  Ba7 {[%clk 0:02:44]} 14. Nbd4 {[%clk 0:02:31]}  Bd7 {[%clk 0:02:41]} 15. b3 {[%clk 0:02:20]}  Qc8 {[%clk 0:02:28]} 16. Nf5 {[%clk 0:02:17]}  Ng6 {[%clk 0:02:09]} 17. Bh2 {[%clk 0:02:10]}  d5 {[%clk 0:01:41]} 18. e5 {[%clk 0:02:00]}  Bxf5 {[%clk 0:01:39]} 19. exf6 {[%clk 0:02:00]}  Rxe1+ {[%clk 0:01:36]} 20. Nxe1 {[%clk 0:02:00]}  Bxc2 {[%clk 0:01:32]} 21. Nxc2 {[%clk 0:02:00]}  Qf5 {[%clk 0:01:30]} 22. Nd4 {[%clk 0:01:56]}  Qxf6 {[%clk 0:01:27]} 23. Bxc7 {[%clk 0:01:51]}  Rc8 {[%clk 0:01:26]} 24. Bg3 {[%clk 0:01:49]}  Rxc3 {[%clk 0:01:24]} 25. Nf3 {[%clk 0:01:49]}  d4 {[%clk 0:01:11]} 26. Qe2 {[%clk 0:01:42]}  d3 {[%clk 0:01:05]} 27. Qe8+ {[%clk 0:01:41]}  Kh7 {[%clk 0:01:06]} 28. Rd1 {[%clk 0:01:41]}  Qf5 {[%clk 0:00:50]} 29. Qa8 {[%clk 0:01:32]}  d2 {[%clk 0:00:29]} 30. Rxd2 {[%clk 0:01:19]}  Rc1+ {[%clk 0:00:10]} 31. Kh2 {[%clk 0:01:19]}  Qb1 {[%clk 0:00:11]} 32. Bd6 {[%clk 0:01:18]}  Bb6 {[%clk 0:00:09]} 33. Qxb7 {[%clk 0:01:17]}  Ba5 {[%clk 0:00:10]} 34. b4 {[%clk 0:01:14]}  Rh1+ {[%clk 0:00:09]} 35. Kg3 {[%clk 0:01:15]}  Bd8 {[%clk 0:00:07]} 36. Qxf7 {[%clk 0:00:20]}  Qe4 {[%clk 0:00:07]} 37. Rd4 {[%clk 0:00:21]}  Qe2 {[%clk 0:00:04]} 38. Be5 {[%clk 0:00:17]}  Nxe5 {[%clk 0:00:03]} 39. Qf5+ {[%clk 0:00:18]}  Ng6 {[%clk 0:00:03]} 40. Rxd8 {[%clk 0:00:18]}  Rf1 {[%clk 0:00:00]} 41. Nh4 {[%clk 0:00:16]} 1-0


[Site "https://www.chess.com"]

[Event "Titled Tuesday Blitz July 4 Late 2023"]
[White "Matinian, Nikita"]
[Black "Ambartsumova, Karina"]
[WhiteFideId "24129100"]
[BlackFideId "4166299"]
[WhiteElo "2688"]
[BlackElo "2553"]
[Result "1-0"]
[Round "9"]
[TimeControl "180+2"]
[Date "2023.07.04"]
[WhiteClock "0:01:21"]
[BlackClock "0:00:13"]
[Board "36"]

1. e4 {[%clk 0:03:00]}  e5 {[%clk 0:02:58]} 2. Nf3 {[%clk 0:03:01]}  Nc6 {[%clk 0:02:56]} 3. Bb5 {[%clk 0:03:01]}  Nf6 {[%clk 0:02:55]} 4. O-O {[%clk 0:03:01]}  Nxe4 {[%clk 0:02:56]} 5. d4 {[%clk 0:03:01]}  Nd6 {[%clk 0:02:56]} 6. Bxc6 {[%clk 0:03:02]}  dxc6 {[%clk 0:02:57]} 7. dxe5 {[%clk 0:03:02]}  Nf5 {[%clk 0:02:57]} 8. Qxd8+ {[%clk 0:03:03]}  Kxd8 {[%clk 0:02:58]} 9. h3 {[%clk 0:03:04]}  Be7 {[%clk 0:02:57]} 10. g4 {[%clk 0:02:55]}  Nh4 {[%clk 0:02:54]} 11. Nxh4 {[%clk 0:02:56]}  Bxh4 {[%clk 0:02:55]} 12. Kg2 {[%clk 0:02:53]}  Be6 {[%clk 0:02:46]} 13. Nc3 {[%clk 0:02:53]}  Ke7 {[%clk 0:02:34]} 14. Be3 {[%clk 0:02:52]}  b6 {[%clk 0:02:29]} 15. f4 {[%clk 0:02:52]}  h5 {[%clk 0:01:55]} 16. f5 {[%clk 0:02:37]}  Bc4 {[%clk 0:01:55]} 17. Rf4 {[%clk 0:02:28]}  Bd5+ {[%clk 0:01:36]} 18. Nxd5+ {[%clk 0:02:25]}  cxd5 {[%clk 0:01:37]} 19. Rd1 {[%clk 0:02:14]}  Bg5 {[%clk 0:01:27]} 20. Rf3 {[%clk 0:02:14]}  Bxe3 {[%clk 0:01:23]} 21. Rxe3 {[%clk 0:02:15]}  hxg4 {[%clk 0:01:22]} 22. hxg4 {[%clk 0:02:15]}  Rad8 {[%clk 0:01:19]} 23. e6 {[%clk 0:02:13]}  fxe6 {[%clk 0:01:15]} 24. Rxe6+ {[%clk 0:02:13]}  Kf7 {[%clk 0:01:15]} 25. Rde1 {[%clk 0:02:13]}  Rd7 {[%clk 0:01:15]} 26. Kg3 {[%clk 0:02:10]}  d4 {[%clk 0:00:52]} 27. g5 {[%clk 0:02:10]}  Rf8 {[%clk 0:00:52]} 28. Kf4 {[%clk 0:01:59]}  Kg8 {[%clk 0:00:46]} 29. Re8 {[%clk 0:01:56]}  d3 {[%clk 0:00:26]} 30. cxd3 {[%clk 0:01:55]}  Rd4+ {[%clk 0:00:23]} 31. R1e4 {[%clk 0:01:52]}  Rxd3 {[%clk 0:00:20]} 32. R4e7 {[%clk 0:01:38]}  Rxe8 {[%clk 0:00:20]} 33. Rxe8+ {[%clk 0:01:39]}  Kf7 {[%clk 0:00:21]} 34. Rc8 {[%clk 0:01:39]}  Rd4+ {[%clk 0:00:22]} 35. Ke5 {[%clk 0:01:38]}  Rc4 {[%clk 0:00:22]} 36. g6+ {[%clk 0:01:32]}  Ke7 {[%clk 0:00:22]} 37. Rg8 {[%clk 0:01:32]}  Rc5+ {[%clk 0:00:23]} 38. Kf4 {[%clk 0:01:33]}  Rc4+ {[%clk 0:00:20]} 39. Kg5 {[%clk 0:01:32]}  Rc2 {[%clk 0:00:18]} 40. Rxg7+ {[%clk 0:01:32]}  Kd6 {[%clk 0:00:19]} 41. Rf7 {[%clk 0:01:28]}  Rxb2 {[%clk 0:00:18]} 42. g7 {[%clk 0:01:28]}  Rg2+ {[%clk 0:00:17]} 43. Kf6 {[%clk 0:01:28]}  c5 {[%clk 0:00:18]} 44. Rf8 {[%clk 0:01:28]}  c4 {[%clk 0:00:18]} 45. g8=Q {[%clk 0:01:29]}  Rxg8 {[%clk 0:00:18]} 46. Rxg8 {[%clk 0:01:30]}  b5 {[%clk 0:00:17]} 47. Kg7 {[%clk 0:01:28]}  Kd7 {[%clk 0:00:16]} 48. f6 {[%clk 0:01:28]}  c3 {[%clk 0:00:17]} 49. f7 {[%clk 0:01:29]}  c2 {[%clk 0:00:17]} 50. f8=Q {[%clk 0:01:29]}  c1=Q {[%clk 0:00:18]} 51. Qd8+ {[%clk 0:01:28]}  Ke6 {[%clk 0:00:18]} 52. Re8+ {[%clk 0:01:28]}  Kf5 {[%clk 0:00:18]} 53. Qd5+ {[%clk 0:01:27]}  Kg4 {[%clk 0:00:16]} 54. Re4+ {[%clk 0:01:24]}  Kh3 {[%clk 0:00:16]} 55. Qd3+ {[%clk 0:01:22]}  Kg2 {[%clk 0:00:16]} 56. Re2+ {[%clk 0:01:22]}  Kh1 {[%clk 0:00:13]} 57. Qh3+ {[%clk 0:01:21]}  Kg1 {[%clk 0:00:13]} 58. Qg2# {[%clk 0:01:21]} 1-0


[Site "https://www.chess.com"]

[Event "Titled Tuesday Blitz July 4 Late 2023"]
[White "AdvanceGuard4"]
[Black "Shuvalova, Polina"]
[BlackFideId "24171760"]
[WhiteElo "2549"]
[BlackElo "2684"]
[Result "1-0"]
[Round "9"]
[TimeControl "180+2"]
[Date "2023.07.04"]
[WhiteClock "0:00:05"]
[BlackClock "0:00:23"]
[Board "37"]

1. e4 {[%clk 0:02:49]}  c6 {[%clk 0:02:58]} 2. d4 {[%clk 0:02:45]}  d5 {[%clk 0:02:58]} 3. exd5 {[%clk 0:02:43]}  cxd5 {[%clk 0:02:59]} 4. Bd3 {[%clk 0:02:42]}  Nc6 {[%clk 0:02:58]} 5. c3 {[%clk 0:02:41]}  Nf6 {[%clk 0:02:57]} 6. Bf4 {[%clk 0:02:37]}  Bg4 {[%clk 0:02:53]} 7. Qb3 {[%clk 0:02:36]}  Qd7 {[%clk 0:02:48]} 8. Nd2 {[%clk 0:02:27]}  e6 {[%clk 0:02:48]} 9. Ngf3 {[%clk 0:02:27]}  Bd6 {[%clk 0:02:48]} 10. Bxd6 {[%clk 0:02:24]}  Qxd6 {[%clk 0:02:49]} 11. O-O {[%clk 0:02:24]}  O-O {[%clk 0:02:49]} 12. Rae1 {[%clk 0:02:21]}  Nd7 {[%clk 0:02:45]} 13. Nh4 {[%clk 0:02:02]}  Bh5 {[%clk 0:02:27]} 14. f4 {[%clk 0:02:00]}  Nf6 {[%clk 0:02:05]} 15. h3 {[%clk 0:01:53]}  Bg6 {[%clk 0:02:04]} 16. Nxg6 {[%clk 0:01:51]}  hxg6 {[%clk 0:02:02]} 17. Qd1 {[%clk 0:01:44]}  Rab8 {[%clk 0:01:58]} 18. a4 {[%clk 0:01:32]}  a6 {[%clk 0:01:57]} 19. Qe2 {[%clk 0:01:32]}  b5 {[%clk 0:01:54]} 20. axb5 {[%clk 0:01:27]}  axb5 {[%clk 0:01:55]} 21. b4 {[%clk 0:01:22]}  Ne7 {[%clk 0:01:50]} 22. Nb3 {[%clk 0:01:21]}  Nf5 {[%clk 0:01:49]} 23. Qf3 {[%clk 0:01:14]}  Qc6 {[%clk 0:01:46]} 24. Nc5 {[%clk 0:01:11]}  Nd6 {[%clk 0:01:46]} 25. g4 {[%clk 0:00:58]}  Ra8 {[%clk 0:01:45]} 26. Ra1 {[%clk 0:00:56]}  Rxa1 {[%clk 0:01:42]} 27. Rxa1 {[%clk 0:00:57]}  Ra8 {[%clk 0:01:42]} 28. Qf1 {[%clk 0:00:58]}  Nfe4 {[%clk 0:01:35]} 29. Qc1 {[%clk 0:00:47]}  Nc4 {[%clk 0:01:24]} 30. Nxe4 {[%clk 0:00:33]}  dxe4 {[%clk 0:01:21]} 31. Bxc4 {[%clk 0:00:32]}  Rxa1 {[%clk 0:01:12]} 32. Qxa1 {[%clk 0:00:33]}  Qxc4 {[%clk 0:01:13]} 33. Qa8+ {[%clk 0:00:32]}  Kh7 {[%clk 0:01:13]} 34. Qxe4 {[%clk 0:00:32]}  Qxc3 {[%clk 0:01:13]} 35. f5 {[%clk 0:00:18]}  Qxb4 {[%clk 0:01:00]} 36. fxg6+ {[%clk 0:00:16]}  fxg6 {[%clk 0:01:01]} 37. h4 {[%clk 0:00:13]}  Qd2 {[%clk 0:00:48]} 38. h5 {[%clk 0:00:09]}  Qg5 {[%clk 0:00:48]} 39. Qxe6 {[%clk 0:00:02]}  gxh5 {[%clk 0:00:45]} 40. Qe4+ {[%clk 0:00:03]}  Qg6 {[%clk 0:00:37]} 41. Qe5 {[%clk 0:00:02]}  Qxg4+ {[%clk 0:00:37]} 42. Kf2 {[%clk 0:00:03]}  b4 {[%clk 0:00:35]} 43. d5 {[%clk 0:00:02]}  b3 {[%clk 0:00:29]} 44. d6 {[%clk 0:00:03]}  Qh4+ {[%clk 0:00:27]} 45. Ke2 {[%clk 0:00:02]}  Qc4+ {[%clk 0:00:26]} 46. Kd2 {[%clk 0:00:01]}  Qc2+ {[%clk 0:00:26]} 47. Ke3 {[%clk 0:00:02]}  b2 {[%clk 0:00:27]} 48. d7 {[%clk 0:00:02]}  Qc1+ {[%clk 0:00:22]} 49. Kf3 {[%clk 0:00:01]}  Qh1+ {[%clk 0:00:21]} 50. Ke3 {[%clk 0:00:01]}  Qe1+ {[%clk 0:00:21]} 51. Kf4 {[%clk 0:00:02]}  Qxe5+ {[%clk 0:00:21]} 52. Kxe5 {[%clk 0:00:02]}  b1=Q {[%clk 0:00:22]} 53. d8=Q {[%clk 0:00:03]}  Qe1+ {[%clk 0:00:23]} 54. Kf4 {[%clk 0:00:04]}  Qh4+ {[%clk 0:00:23]} 55. Qxh4 {[%clk 0:00:01]}  Kh6 {[%clk 0:00:23]} 56. Qg5+ {[%clk 0:00:02]}  Kh7 {[%clk 0:00:23]} 57. Kf5 {[%clk 0:00:03]}  Kg8 {[%clk 0:00:24]} 58. Qg6 {[%clk 0:00:03]}  Kh8 {[%clk 0:00:24]} 59. Ke6 {[%clk 0:00:04]}  Kg8 {[%clk 0:00:22]} 60. Qxh5 {[%clk 0:00:04]}  g5 {[%clk 0:00:23]} 61. Qg6+ {[%clk 0:00:04]}  Kh8 {[%clk 0:00:24]} 62. Kf7 {[%clk 0:00:04]}  g4 {[%clk 0:00:23]} 63. Qg7# {[%clk 0:00:05]} 1-0


[Site "https://www.chess.com"]

[Event "Titled Tuesday Blitz July 4 Late 2023"]
[White "ElDivis"]
[Black "Rastbod, Ali"]
[BlackFideId "12567477"]
[WhiteElo "2548"]
[BlackElo "2680"]
[Result "1-0"]
[Round "9"]
[TimeControl "180+2"]
[Date "2023.07.04"]
[WhiteClock "0:00:11"]
[BlackClock "0:01:28"]
[Board "38"]

1. Nf3 {[%clk 0:03:00]}  f5 {[%clk 0:02:58]} 2. d3 {[%clk 0:02:58]}  Nc6 {[%clk 0:02:58]} 3. d4 {[%clk 0:02:56]}  e6 {[%clk 0:02:56]} 4. g3 {[%clk 0:02:45]}  Nf6 {[%clk 0:02:55]} 5. Bg2 {[%clk 0:02:45]}  Be7 {[%clk 0:02:54]} 6. O-O {[%clk 0:02:46]}  O-O {[%clk 0:02:55]} 7. c4 {[%clk 0:02:46]}  d6 {[%clk 0:02:53]} 8. d5 {[%clk 0:02:42]}  Nb4 {[%clk 0:02:41]} 9. Nc3 {[%clk 0:02:30]}  e5 {[%clk 0:02:40]} 10. Ng5 {[%clk 0:02:15]}  a5 {[%clk 0:02:38]} 11. a3 {[%clk 0:02:09]}  Na6 {[%clk 0:02:38]} 12. b4 {[%clk 0:01:45]}  axb4 {[%clk 0:02:39]} 13. axb4 {[%clk 0:01:45]}  h6 {[%clk 0:02:37]} 14. Nh3 {[%clk 0:01:24]}  g5 {[%clk 0:02:35]} 15. b5 {[%clk 0:01:07]}  f4 {[%clk 0:02:30]} 16. bxa6 {[%clk 0:01:03]}  bxa6 {[%clk 0:02:30]} 17. gxf4 {[%clk 0:00:51]}  exf4 {[%clk 0:02:23]} 18. Nxf4 {[%clk 0:00:35]}  gxf4 {[%clk 0:02:23]} 19. Bxf4 {[%clk 0:00:36]}  Rf7 {[%clk 0:02:16]} 20. Bg3 {[%clk 0:00:34]}  Nh5 {[%clk 0:02:12]} 21. e3 {[%clk 0:00:32]}  Nxg3 {[%clk 0:02:10]} 22. hxg3 {[%clk 0:00:32]}  Bf6 {[%clk 0:02:10]} 23. Rc1 {[%clk 0:00:28]}  Rg7 {[%clk 0:02:08]} 24. Ne4 {[%clk 0:00:26]}  Be5 {[%clk 0:02:06]} 25. f4 {[%clk 0:00:26]}  Bb2 {[%clk 0:02:06]} 26. Rb1 {[%clk 0:00:25]}  Bf6 {[%clk 0:02:07]} 27. Nxf6+ {[%clk 0:00:24]}  Qxf6 {[%clk 0:02:07]} 28. Qf3 {[%clk 0:00:20]}  Bg4 {[%clk 0:01:58]} 29. Qf2 {[%clk 0:00:20]}  h5 {[%clk 0:01:58]} 30. e4 {[%clk 0:00:20]}  h4 {[%clk 0:01:58]} 31. e5 {[%clk 0:00:16]}  dxe5 {[%clk 0:01:57]} 32. fxe5 {[%clk 0:00:16]}  Qxe5 {[%clk 0:01:58]} 33. Rbe1 {[%clk 0:00:15]}  Qxg3 {[%clk 0:01:58]} 34. Qxg3 {[%clk 0:00:15]}  hxg3 {[%clk 0:01:58]} 35. c5 {[%clk 0:00:12]}  Rd8 {[%clk 0:01:57]} 36. Re5 {[%clk 0:00:11]}  Be2 {[%clk 0:01:51]} 37. Rxe2 {[%clk 0:00:11]}  Rf7 {[%clk 0:01:31]} 38. Rxf7 {[%clk 0:00:10]}  Kxf7 {[%clk 0:01:32]} 39. Re3 {[%clk 0:00:11]}  Rb8 {[%clk 0:01:30]} 40. Rxg3 {[%clk 0:00:10]}  Rb1+ {[%clk 0:01:30]} 41. Kh2 {[%clk 0:00:11]}  Rc1 {[%clk 0:01:31]} 42. c6 {[%clk 0:00:11]}  Ke7 {[%clk 0:01:30]} 43. Ra3 {[%clk 0:00:11]}  Kd6 {[%clk 0:01:30]} 44. Rxa6 {[%clk 0:00:11]}  Ra1 {[%clk 0:01:28]} 45. Rxa1 {[%clk 0:00:11]} 1-0


[Site "https://www.chess.com"]